bitfinex/quotes_ETHUSD_20241217
["timestamp","ask_amount","ask_price","bid_price","bid_amount"]
[1734443328468,0.0471539,4007.5,4006.0,0.55]
[1734443328848,0.814,4008.0,4006.1,0.7999]
[1734443329048,0.03691676,4007.4,4006.1,0.7999]
[1734443329371,0.04150406,4007.3,4006.3,0.7999]
[1734443329542,2.49507,4007.9,4006.3,0.7999]
[1734443329872,0.04164054,4007.8,4006.3,0.7999]
[1734443332483,3.04164054,4007.8,4006.3,0.7999]
[1734443335792,0.04164054,4007.8,4006.3,0.7999]
[1734443336562,2.53678054,4007.8,4006.3,0.7999]
[1734443337094,2.49538,4007.4,4006.3,0.7999]
[1734443337280,0.0368925,4007.3,4006.3,0.7999]
[1734443337589,0.02318792,4007.3,4006.3,0.7999]
[1734443338171,3.27829,4007.6,4006.3,0.7999]
[1734443338381,2.32934808,4007.4,4006.3,0.7999]
[1734443338585,1.77128941,4007.3,4006.3,0.7999]
[1734443338757,0.9366558,4007.3,4006.3,0.7999]
[1734443339200,2.49553,4007.2,4006.3,0.7999]
[1734443339569,0.02306871,4007.1,4006.3,0.7999]
[1734443340098,0.91355797,4007.3,4006.3,0.7999]
[1734443340395,0.02298857,4007.2,4006.3,0.7999]
[1734443340787,0.56586934,4007.8,4006.3,0.7999]
[1734443341328,1.04329203,4007.9,4006.3,0.7999]
[1734443341329,0.02306136,4007.7,4006.3,0.7999]
[1734443341471,0.85813762,4007.6,4006.3,0.7999]
[1734443341671,0.02303224,4007.5,4006.3,0.7999]
[1734443342587,0.03051396,4007.5,4006.3,0.7999]
[1734443344005,2.49515,4007.8,4006.3,0.7999]
[1734443344206,0.03051397,4007.4,4006.3,0.7999]
[1734443344406,2.49526,4007.6,4006.3,0.7999]
[1734443344567,0.03049412,4007.3,4006.3,0.7999]
[1734443344774,3.1490342,4007.7,4006.3,0.7999]
[1734443345072,0.8583306,4007.6,4006.3,0.7999]
[1734443345269,0.5355995,4007.5,4006.3,0.7999]
[1734443346274,2.32934808,4007.4,4006.3,0.7999]
[1734443346476,3.22057309,4007.3,4006.3,0.7999]
[1734443346688,3.22057309,4007.3,4004.0,0.24983628]
[1734443346689,2.49583,4006.7,4006.0,0.7531]
[1734443346888,0.02790651,4006.6,4006.0,0.7531]
[1734443347210,0.25237365,4006.5,4006.0,0.7531]
[1734443347575,0.03692754,4006.4,4006.0,0.7531]
[1734443348197,0.833,4006.6,4005.0,0.7531]
[1734443348384,0.03321294,4006.3,4005.0,0.7531]
[1734443348583,1.87629203,4006.6,4005.0,0.7531]
[1734443348812,1.20344742,4006.5,4005.0,0.7531]
[1734443348982,0.34412301,4006.5,4005.0,0.7531]
[1734443349311,1.04329203,4006.4,4005.0,0.7531]
[1734443349610,4.64483773,4006.3,4005.0,0.7531]
[1734443349915,2.49607,4006.3,4005.0,0.7531]
[1734443350077,1.24811786,4006.2,4005.0,0.7531]
[1734443350276,2.8844985,4006.2,4005.0,0.7531]
[1734443351091,0.3883485,4006.2,4005.0,0.7531]
[1734443351311,1.04329203,4006.4,4005.0,0.7531]
[1734443351514,2.15021866,4006.3,4005.0,0.7531]
[1734443351688,1.38741504,4006.5,4005.0,0.7531]
[1734443352026,3.19342428,4006.4,4005.0,0.7531]
[1734443352183,3.19342428,4006.3,4005.0,0.7531]
[1734443352378,0.8600529,4006.2,4005.0,0.7531]
[1734443352716,1.04329203,4006.4,4005.0,0.7531]
[1734443352899,2.15092635,4006.3,4005.0,0.7531]
[1734443353101,2.15134077,4006.2,4005.0,0.7531]
[1734443353300,0.86067316,4006.1,4005.0,0.7531]
[1734443353504,0.86067316,4006.0,4005.0,0.7531]
[1734443353813,1.04329203,4006.2,4005.0,0.7531]
[1734443354004,3.89876139,4006.2,4005.0,0.7531]
[1734443354178,3.19510755,4006.1,4005.0,0.7531]
[1734443354378,2.15181552,4006.0,4005.0,0.7531]
[1734443354606,1.04329203,4006.1,4005.0,0.7531]
[1734443354777,0.58079539,4006.0,4005.0,0.7531]
[1734443354977,1.74694587,4006.2,4005.0,0.7531]
[1734443355222,3.19646508,4006.1,4005.0,0.7531]
[1734443355402,0.86104376,4006.0,4005.0,0.7531]
[1734443355719,1.04329203,4006.1,4005.0,0.7531]
[1734443355934,0.86145371,4006.1,4005.0,0.7531]
[1734443356121,1.04329203,4006.1,4005.0,0.7531]
[1734443356322,1.04329203,4006.2,4005.0,0.7531]
[1734443356492,1.04329203,4006.3,4005.2,0.8191]
[1734443356700,0.86186071,4006.2,4005.2,0.8191]
[1734443356895,1.04329203,4006.4,4005.2,0.8191]
[1734443357140,1.29273513,4006.3,4005.2,0.8191]
[1734443357434,0.86182342,4006.2,4005.2,0.8191]
[1734443357598,1.04329203,4006.4,4005.3,0.8191]
[1734443357803,1.04329203,4006.1,4005.3,0.8191]
[1734443358104,1.04329203,4005.9,4005.3,0.8191]
[1734443358311,1.29299861,4005.8,4005.3,0.8191]
[1734443358545,2.33629064,4005.8,4005.3,0.8191]
[1734443358715,2.15496087,4005.7,4005.3,0.8191]
[1734443358898,0.86196226,4005.6,4005.3,0.8191]
[1734443359101,1.04329203,4005.8,4005.3,0.8191]
[1734443359333,1.29337804,4005.7,4005.3,0.8191]
[1734443359551,1.30411504,4005.8,4005.3,0.8191]
[1734443359833,1.04329203,4005.6,4005.3,0.8191]
[1734443360036,1.04329203,4005.4,4003.7,0.8191]
[1734443360334,3.19892727,4005.3,4003.9,0.8191]
[1734443360520,1.04329203,4005.4,4003.9,0.8191]
[1734443361237,1.29366924,4005.3,4003.9,0.8191]
[1734443361413,1.04329203,4005.4,4003.9,0.8191]
[1734443361735,1.29351664,4005.3,4004.0,0.96249448]
[1734443362032,1.04329203,4005.4,4004.0,0.96249448]
[1734443362237,1.29368027,4005.3,4004.0,0.96249448]
[1734443362410,1.04329203,4005.4,4004.0,0.96249448]
[1734443363026,2.33680355,4005.3,4004.0,0.8191]
[1734443363238,1.04329203,4005.1,4004.0,0.8191]
[1734443363459,2.15584924,4005.2,4004.0,0.8191]
[1734443363460,3.19914127,4005.0,4004.0,0.8191]
[1734443363659,1.04329203,4005.1,4004.0,0.8191]
[1734443363957,0.86225195,4005.0,4004.0,0.8191]
[1734443364119,1.04329203,4005.2,4004.0,0.8191]
[1734443364315,1.29336327,4005.1,4004.0,0.8191]
[1734443364566,0.86224218,4005.0,4004.0,0.8191]
[1734443364766,1.04329203,4005.2,4004.0,0.8191]
[1734443364973,1.29310637,4005.1,4004.0,0.8191]
[1734443365168,1.04329203,4005.2,4004.0,0.8191]
[1734443365457,0.86201498,4005.1,4004.0,0.8191]
[1734443365663,1.04329203,4005.2,4004.0,0.8191]
[1734443366258,1.2927506,4005.1,4004.0,0.8191]
[1734443366453,1.04329203,4005.2,4004.0,0.8191]
[1734443366860,0.8616902,4005.1,4004.0,0.8191]
[1734443367015,1.04329203,4005.3,4004.0,0.8191]
[1734443367219,1.04329203,4005.4,4004.0,0.8191]
[1734443367467,0.86160114,4005.3,4004.0,0.8191]
[1734443367668,1.04329203,4005.5,4004.0,0.8191]
[1734443367822,1.55311312,4005.4,4004.0,0.8191]
[1734443368160,0.86152674,4005.3,4004.0,0.8191]
[1734443368565,0.26082301,4005.4,4004.0,0.8191]
[1734443369228,0.8613882,4005.3,4004.0,0.8191]
[1734443369426,0.26082301,4005.4,4004.0,0.8191]
[1734443369673,3.4304115,4005.3,4004.0,0.8191]
[1734443369881,0.86134235,4005.2,4004.0,0.8191]
[1734443370079,0.4304115,4005.3,4004.0,0.8191]
[1734443370080,4.47370353,4005.3,4004.0,0.8191]
[1734443370235,0.86133978,4005.2,4004.0,0.8191]
[1734443370441,0.4304115,4005.3,4004.0,0.8191]
[1734443371363,1.03470929,4005.2,4004.0,0.8191]
[1734443371577,0.86120342,4005.1,4004.0,0.8191]
[1734443371887,1.04329203,4005.1,4004.0,0.8191]
[1734443372041,0.86120495,4005.0,4004.0,0.8191]
[1734443372251,1.04329203,4005.3,4004.0,0.8191]
[1734443372579,1.04329203,4005.3,4004.2,0.7813]
[1734443372580,2.15295771,4005.3,4004.2,0.7813]
[1734443372783,0.26082301,4005.4,4004.2,0.7813]
[1734443372967,0.26082301,4005.4,4004.1,0.34434564]
[1734443372968,1.04329203,4005.9,4004.8,0.7813]
[1734443373145,1.04329203,4006.2,4004.8,0.7813]
[1734443373346,0.86091097,4006.1,4004.8,0.7813]
[1734443373570,1.04329203,4006.3,4005.0,0.7813]
[1734443373879,1.29143095,4006.2,4005.0,0.7813]
[1734443374083,1.04329203,4006.3,4005.0,0.7813]
[1734443374282,1.04329203,4006.5,4005.0,0.7813]
[1734443374646,0.86092711,4006.4,4005.0,0.7813]
[1734443374848,1.04329203,4006.6,4005.0,0.7813]
[1734443375045,3.19569801,4006.5,4005.0,0.7813]
[1734443375261,0.86096239,4006.4,4005.0,0.7813]
[1734443375443,1.04329203,4006.6,4005.0,0.7813]
[1734443375667,3.19583795,4006.6,4005.0,0.7813]
[1734443375905,2.15254592,4006.5,4005.0,0.7813]
[1734443376086,0.8610183,4006.4,4005.0,0.7813]
[1734443376259,1.04329203,4006.4,4005.0,0.7813]
[1734443376459,1.29175395,4006.3,4005.0,0.7813]
[1734443376661,1.8316375,4006.4,4005.0,0.7813]
[1734443376972,2.15292646,4006.3,4005.0,0.7813]
[1734443377174,0.86117058,4006.2,4005.0,0.7813]
[1734443377374,1.04329203,4006.3,4005.0,0.7813]
[1734443377762,0.86129962,4006.2,4005.0,0.7813]
[1734443377953,1.8316375,4006.4,4005.0,0.7813]
[1734443378151,2.15318465,4006.3,4005.0,0.7813]
[1734443378405,0.86127386,4006.2,4005.0,0.7813]
[1734443378597,1.04329203,4006.4,4005.0,0.7813]
[1734443378888,3.9318895,4006.7,4005.0,0.7813]
[1734443378889,3.19672488,4006.3,4005.0,0.7813]
[1734443379075,3.19672488,4006.2,4005.0,0.7813]
[1734443379278,0.86137314,4006.1,4005.2,0.7813]
[1734443379595,1.04329203,4006.3,4005.2,0.7813]
[1734443379750,1.29228865,4006.2,4005.2,0.7813]
[1734443379953,0.86152576,4006.1,4005.2,0.7813]
[1734443380151,1.04329203,4006.3,4005.2,0.7813]
[1734443380394,1.2924009,4006.2,4005.2,0.7813]
[1734443380551,0.8616006,4006.1,4005.2,0.7813]
[1734443380755,1.04329203,4006.3,4005.2,0.7813]
[1734443380991,1.2924689,4006.2,4005.2,0.7813]
[1734443381193,0.86164593,4006.1,4005.2,0.7813]
[1734443381391,1.04329203,4006.2,4005.2,0.7813]
[1734443381692,1.29268843,4006.1,4005.2,0.7813]
[1734443381853,1.04329203,4006.2,4005.2,0.7813]
[1734443382061,0.8618023,4006.1,4005.2,0.7813]
[1734443382293,1.04329203,4006.3,4005.2,0.7813]
[1734443382593,1.29290909,4006.2,4005.2,0.7813]
[1734443382825,1.04329203,4006.3,4005.2,0.7813]
[1734443383022,1.29290787,4006.2,4005.2,0.7813]
[1734443383310,1.04329203,4006.3,4005.2,0.7813]
[1734443383311,0.86193858,4006.1,4005.2,0.7813]
[1734443383508,0.8620815,4006.0,4005.2,0.9315932]
[1734443383709,1.04329203,4006.2,4005.2,0.9315932]
[1734443384228,0.86207727,4006.5,4005.2,0.9315932]
[1734443384229,0.86207727,4006.1,4005.2,0.9315932]
[1734443384427,1.04329203,4006.2,4005.2,0.9315932]
[1734443385112,0.86213463,4006.1,4005.2,0.9315932]
[1734443385429,1.04329203,4006.2,4005.4,0.7813]
[1734443385597,1.29327377,4006.1,4005.4,0.7813]
[1734443385791,1.04329203,4006.2,4005.4,0.7813]
[1734443386027,1.29327701,4006.1,4005.4,0.7813]
[1734443386231,1.04329203,4006.2,4005.4,0.7813]
[1734443386527,1.293279,4006.1,4005.4,0.7813]
[1734443386715,1.04329203,4006.2,4005.4,0.7813]
[1734443386900,1.29332862,4006.1,4005.4,0.7813]
[1734443387103,1.04329203,4006.2,4005.4,0.7813]
[1734443387310,1.2933299,4006.1,4005.4,0.7813]
[1734443387503,0.86231324,4006.0,4005.4,0.7813]
[1734443387732,1.04329203,4006.2,4005.4,0.7813]
[1734443387929,1.29351698,4006.1,4005.4,0.7813]
[1734443388130,0.86234465,4006.0,4005.4,0.7813]
[1734443388441,1.04329203,4006.1,4005.4,0.7813]
[1734443389030,2.33699804,4006.1,4005.4,0.7813]
[1734443389212,0.86247101,4006.0,4005.4,0.7813]
[1734443389409,1.04329203,4006.1,4005.4,0.7813]
[1734443389748,1.29390023,4006.0,4005.4,0.7813]
[1734443390066,1.04329203,4006.1,4005.4,0.7813]
[1734443390222,1.29389769,4006.0,4005.4,0.7813]
[1734443390543,0.86279735,4005.9,4005.4,0.7813]
[1734443390752,1.04329203,4006.1,4005.4,0.7813]
[1734443390962,1.04329203,4006.2,4005.4,0.7813]
[1734443391108,1.04329203,4006.5,4005.6,0.7887]
[1734443391443,1.04329203,4006.7,4005.6,0.7887]
[1734443391645,1.04329203,4006.8,4005.6,3.0]
[1734443391942,1.04329203,4006.8,4005.7,0.7887]
[1734443392262,0.86266504,4006.7,4006.4,0.7887]
[1734443392461,1.04329203,4007.1,4006.4,0.7887]
[1734443393122,1.34818744,4007.0,4006.4,0.7887]
[1734443393229,0.05443831,4007.0,4006.4,0.7887]
[1734443393627,1.04329203,4007.2,4006.4,0.7887]
[1734443393851,1.34783548,4007.1,4006.4,0.7887]
[1734443394055,0.05447471,4007.1,4006.4,0.7887]
[1734443394242,0.86223549,4007.0,4006.4,0.7887]
[1734443394436,0.05447471,4007.1,4006.4,0.7887]
[1734443394626,0.05443831,4007.0,4006.4,0.7887]
[1734443395027,1.04329203,4007.3,4006.4,0.7887]
[1734443395227,0.05451111,4007.2,4006.4,0.7887]
[1734443395827,1.04329203,4007.4,4006.4,0.7887]
[1734443396032,3.25223659,4007.3,4006.4,0.7887]
[1734443396229,2.15442811,4007.2,4006.4,0.7887]
[1734443396424,0.05454751,4007.3,4006.4,0.7887]
[1734443396630,0.8615924,4007.2,4006.4,0.7887]
[1734443396995,0.05447471,4007.1,4006.4,0.7887]
[1734443397831,1.04329203,4007.4,4006.4,0.7887]
[1734443398038,0.05454751,4007.3,4006.4,0.7887]
[1734443398863,1.04329203,4007.4,4006.4,0.7887]
[1734443399058,0.86123363,4007.3,4006.4,0.7887]
[1734443399277,0.05454751,4007.3,4006.4,0.7887]
[1734443399759,1.04329203,4007.5,4006.4,0.7887]
[1734443399954,0.05451111,4007.2,4006.4,0.7887]
[1734443400162,0.05458391,4007.4,4006.7,2.32934808]
[1734443400363,0.05447471,4007.1,4006.9,0.7887]
[1734443400636,2.6049657,4008.9,4006.9,0.7887]
[1734443400637,1.04329203,4008.8,4007.3,0.7887]
[1734443400841,1.04329203,4008.8,4007.2,0.55]
[1734443400842,1.04329203,4008.8,4007.8,0.766]
[1734443401103,1.04329203,4009.1,4007.9,0.55]
[1734443401289,1.90397267,4009.2,4008.1,0.766]
[1734443401465,3.19487764,4009.1,4008.1,0.766]
[1734443401666,2.15159616,4009.0,4008.1,0.766]
[1734443401865,1.77097764,4009.2,4008.1,0.766]
[1734443402065,2.14999483,4009.1,4008.1,0.766]
[1734443402300,0.85999185,4009.0,4008.1,0.766]
[1734443402504,1.04329203,4009.2,4008.1,0.766]
[1734443402676,1.04329203,4009.3,4008.1,0.766]
[1734443402995,2.14861837,4009.2,4008.1,0.766]
[1734443403226,0.61919104,4009.1,4008.1,0.766]
[1734443404809,3.80905646,4009.1,4008.1,0.766]
[1734443404993,3.18986542,4009.0,4008.1,0.766]
[1734443405176,2.1465772,4008.9,4008.1,0.766]
[1734443405371,0.85861425,4008.9,4008.1,0.766]
[1734443405611,0.55210973,4008.8,4008.1,0.766]
[1734443406107,2.49476,4008.4,4007.8,0.766]
[1734443406308,3.7566,4008.4,4006.4,0.766]
[1734443406514,0.85849113,4008.3,4006.4,0.766]
[1734443407114,2.49496,4008.1,4006.4,0.766]
[1734443407314,3.0,4007.9,4006.4,0.766]
[1734443407517,5.49509,4007.9,4006.4,0.766]
[1734443408017,6.13035511,4008.0,4006.4,0.766]
[1734443408202,0.63534511,4008.0,4006.4,0.766]
[1734443409020,0.63534511,4008.0,4006.5,0.55]
[1734443409202,1.56493805,4008.7,4006.9,0.766]
[1734443409203,1.04329203,4008.7,4006.9,0.766]
[1734443409377,0.55210973,4008.8,4007.1,0.766]
[1734443409583,0.55210973,4008.8,4007.1,2.32934808]
[1734443409797,0.55210973,4008.8,4007.2,0.766]
[1734443410085,1.04329203,4009.0,4007.2,0.766]
[1734443410283,2.14596407,4008.9,4007.2,0.766]
[1734443410581,0.85837875,4008.8,4007.2,0.766]
[1734443411414,5.49446,4008.9,4007.2,0.766]
[1734443411614,7.91341307,4009.1,4007.2,0.766]
[1734443411821,3.0,4008.9,4007.2,0.766]
[1734443411980,2.32934808,4008.5,4007.2,0.766]
[1734443412185,5.49458,4008.7,4007.2,0.766]
[1734443412399,1.04329203,4008.8,4007.2,0.766]
[1734443412400,3.0,4008.8,4007.2,0.766]
[1734443414705,4.18076992,4009.0,4007.4,0.8246]
[1734443414904,3.8337533,4008.9,4007.5,0.8246]
[1734443415106,0.8337533,4008.9,4007.5,0.8246]
[1734443416888,3.12227461,4009.2,4007.5,0.8246]
[1734443417091,1.04329203,4009.5,4007.7,0.7518]
[1734443417252,0.85857855,4009.4,4007.7,0.7518]
[1734443417661,1.04329203,4009.5,4007.7,0.7518]
[1734443417856,1.68209825,4009.4,4007.9,0.7518]
[1734443418063,0.82345882,4009.4,4007.9,0.7518]
[1734443418440,4.01399605,4009.4,4007.9,0.7518]
[1734443418796,5.1472452,4009.3,4007.9,0.7518]
[1734443418935,0.85889808,4009.2,4007.9,0.7518]
[1734443419290,0.83453891,4009.1,4007.9,0.7518]
[1734443419485,0.83453891,4009.1,4008.4,0.01330727]
[1734443419685,0.83453891,4009.1,4008.5,0.7518]
[1734443425487,2.32934808,4008.9,4008.4,0.01330727]
[1734443425696,2.32934808,4008.5,4008.4,0.01330727]
[1734443425895,6.25138815,4008.5,4008.4,0.01330727]
[1734443426055,6.25139155,4008.5,4008.4,0.01330727]
[1734443426250,5.39233251,4008.5,4008.4,0.01330727]
[1734443427669,6.25172739,4008.5,4008.4,0.01330727]
[1734443428526,7.54098513,4008.5,4008.4,0.01330727]
[1734443429308,6.25172739,4008.5,4008.4,0.01330727]
[1734443429509,7.54107488,4008.5,4008.4,0.01330727]
[1734443429859,8.58436691,4008.5,4008.4,0.01330727]
[1734443430063,12.90901293,4008.5,4008.4,0.01330727]
[1734443430292,13.0637145,4008.5,4008.4,0.01330727]
[1734443430478,15.15029857,4008.5,4008.4,0.01330727]
[1734443431386,15.15029857,4008.5,4007.5,0.7518]
[1734443431387,2.49502,4008.0,4007.5,0.7518]
[1734443431629,0.85939488,4007.9,4007.5,0.7518]
[1734443432537,0.05025265,4007.8,4007.5,0.7518]
[1734443432679,0.05025265,4007.8,4007.2,0.7754]
[1734443433621,2.20236399,4007.8,4007.2,0.7754]
[1734443434120,2.15213653,4007.7,4007.2,0.7754]
[1734443434400,0.75480859,4007.7,4007.2,0.7754]
[1734443434610,0.05078341,4007.6,4007.2,0.7754]
[1734443435533,2.38348133,4007.6,4007.2,0.7754]
[1734443435667,0.86147898,4007.5,4007.2,0.7754]
[1734443435877,0.05075586,4007.4,4007.2,0.7754]
[1734443436124,1.04043788,4007.8,4007.2,0.7754]
[1734443436283,0.05068228,4007.3,4007.2,0.7754]
[1734443436487,0.28505967,4007.7,4007.2,0.7754]
[1734443436488,1.32549755,4007.7,4007.2,0.7754]
[1734443436687,0.91257208,4007.6,4007.2,0.7754]
[1734443436890,0.05072361,4007.6,4007.2,0.7754]
[1734443437368,0.861849,4007.5,4007.2,0.7754]
[1734443437672,0.05069606,4007.4,4007.2,0.7754]
[1734443437881,1.04043788,4007.6,4007.2,0.7754]
[1734443438097,0.05070983,4007.5,4007.2,0.7754]
[1734443438506,0.86208683,4007.4,4007.2,0.7754]
[1734443438875,0.05070221,4007.3,4007.2,0.7754]
[1734443439075,1.04043788,4007.6,4007.2,0.7754]
[1734443439276,0.05072977,4007.5,4007.2,0.7754]
[1734443439506,1.04043788,4007.7,4007.2,0.7754]
[1734443439710,0.05065621,4007.4,4007.2,0.7754]
[1734443439913,1.04043788,4007.6,4007.2,0.7754]
[1734443440116,0.05068229,4007.3,4007.2,0.7754]
[1734443440277,1.04043788,4007.6,4007.2,0.7754]
[1734443440477,0.05070984,4007.5,4007.2,0.7754]
[1734443441527,0.05033266,4007.4,4007.2,0.7754]
[1734443441877,1.04043788,4007.6,4007.2,0.7754]
[1734443442118,0.05034644,4007.5,4007.2,0.7754]
[1734443442512,1.04043788,4007.9,4007.2,0.7754]
[1734443443795,0.05041765,4007.8,4007.4,0.7664]
[1734443443989,1.04043788,4008.4,4007.4,0.7664]
[1734443444224,0.05054337,4007.7,4007.4,0.7664]
[1734443444434,1.04043788,4008.4,4007.4,0.7664]
[1734443444728,3.24709444,4008.3,4007.6,0.7664]
[1734443444892,0.86241222,4008.2,4007.6,0.7664]
[1734443445095,0.05059847,4008.1,4007.6,0.7664]
[1734443445625,1.04043788,4008.3,4007.6,0.7664]
[1734443445824,0.05071419,4008.0,4007.6,0.7664]
[1734443445993,1.04043788,4008.3,4007.6,0.7664]
[1734443445994,1.04043788,4008.1,4007.6,0.7664]
[1734443446331,0.05071419,4008.0,4007.6,0.7664]
[1734443446830,0.86260965,4007.9,4007.6,0.7664]
[1734443447127,0.05068665,4007.8,4007.6,0.7664]
[1734443447791,1.04043788,4008.0,4007.6,0.7664]
[1734443447992,0.05067287,4007.7,4007.6,0.7664]
[1734443448632,1.04043788,4008.0,4007.6,0.7664]
[1734443448822,0.05067287,4007.7,4007.6,0.7664]
[1734443449018,1.12286019,4008.1,4007.6,0.7664]
[1734443449019,1.04043788,4007.9,4007.6,0.7664]
[1734443449193,0.05067287,4007.7,4007.6,0.7664]
[1734443449388,1.04043788,4007.9,4007.6,0.7664]
[1734443449717,3.19736726,4007.8,4007.6,0.7664]
[1734443450042,3.19736726,4007.7,4007.6,0.7664]
[1734443450332,2.20756738,4007.7,4007.6,0.7664]
[1734443451187,2.20800637,4007.7,4007.6,0.7664]
[1734443451609,3.76866319,4007.7,4007.3,0.7788]
[1734443451808,1.04363461,4007.5,4007.3,0.7788]
[1734443452049,3.24977231,4007.4,4006.3,0.7788]
[1734443452250,2.15736837,4007.3,4006.3,0.7788]
[1734443452460,3.20100298,4007.3,4006.3,0.7788]
[1734443452749,0.04874177,4007.2,4006.3,0.7788]
[1734443453946,1.09237638,4007.2,4006.3,0.7788]
[1734443454121,2.15744704,4007.1,4006.3,0.7788]
[1734443454509,0.04871421,4007.0,4006.3,0.7788]
[1734443455150,1.04363461,4007.2,4006.3,0.7788]
[1734443455362,0.04870043,4006.9,4006.3,0.7788]
[1734443455677,1.04363461,4007.2,4006.3,0.7788]
[1734443456171,0.04872799,4007.1,4006.3,0.7788]
[1734443457746,0.86273901,4007.0,4006.3,0.7788]
[1734443458145,0.0471023,4006.9,4006.3,0.7788]
[1734443458709,1.04363461,4007.2,4006.3,0.7788]
[1734443458916,0.04708852,4006.8,4006.3,0.7788]
[1734443459216,1.04363461,4007.2,4006.3,0.7788]
[1734443459846,0.04712986,4007.1,4006.3,0.7788]
[1734443461035,2.38464991,4007.1,4006.3,0.7788]
[1734443461235,3.20010925,4007.0,4006.3,0.7788]
[1734443461458,1.04363461,4006.8,4006.3,0.7788]
[1734443461673,0.04683557,4006.7,4006.3,0.7788]
[1734443461869,2.33756639,4006.8,4006.3,0.7788]
[1734443461870,0.8625892,4006.6,4006.3,0.7788]
[1734443462075,0.04676814,4006.5,4006.3,0.7788]
[1734443462437,3.24670013,4006.5,4005.3,0.8013]
[1734443462679,1.04363461,4006.2,4005.3,0.8013]
[1734443462978,1.04363461,4005.9,4005.3,0.8013]
[1734443463169,3.19993199,4005.8,4005.3,0.8013]
[1734443463476,0.04612351,4005.8,4005.3,0.8013]
[1734443463676,1.08975812,4005.8,4005.3,0.8013]
[1734443463976,2.15564356,4005.7,4005.3,0.8013]
[1734443464198,0.86225726,4005.6,4005.3,0.8013]
[1734443464437,0.04608098,4005.6,4005.3,0.8013]
[1734443464997,0.56191585,4005.8,4005.3,0.8013]
[1734443464998,0.04606719,4005.5,4005.3,0.8013]
[1734443465143,0.56191585,4005.8,4005.3,0.8013]
[1734443465288,0.04605339,4005.4,4005.3,0.8013]
[1734443465618,1.04363461,4006.0,4005.3,0.8013]
[1734443465764,0.04605339,4005.4,4005.3,0.8013]
[1734443465965,0.34173914,4005.9,4005.3,0.8013]
[1734443466167,0.04605339,4005.4,4005.3,0.8013]
[1734443466408,0.34173914,4005.9,4005.3,0.8013]
[1734443466603,0.04565463,4005.4,4005.3,0.8013]
[1734443466924,0.04565463,4005.4,4004.6,0.782]
[1734443467104,1.38537375,4005.9,4004.6,0.782]
[1734443467266,1.53186491,4005.8,4004.6,0.782]
[1734443467469,0.67082311,4005.8,4004.6,0.782]
[1734443467722,0.86108935,4005.7,4004.6,0.782]
[1734443467932,0.04526348,4005.6,4004.6,0.782]
[1734443469670,0.34173914,4005.9,4004.6,0.782]
[1734443469864,1.53149216,4005.8,4004.6,0.782]
[1734443470064,0.67082411,4005.8,4004.6,0.782]
[1734443471328,0.04529105,4005.8,4004.6,0.782]
[1734443471684,1.04363461,4006.2,4004.6,0.782]
[1734443471865,0.86033454,4006.1,4004.6,0.782]
[1734443472214,0.90531793,4006.1,4004.9,0.782]
[1734443472384,0.04498339,4006.1,4005.2,2.87934808]
[1734443472585,0.04498339,4006.1,4005.4,0.782]
[1734443472814,2.15073215,4007.1,4005.4,1.07700836]
[1734443473116,0.04216389,4007.0,4005.8,0.782]
[1734443473412,0.04216389,4007.0,4005.9,0.782]
[1734443474978,0.7945,4006.9,4005.0,0.782]
[1734443475183,4.82517808,4006.7,4005.0,0.782]
[1734443475380,0.7945,4006.5,4005.0,0.782]
[1734443475583,2.32934808,4006.3,4005.0,0.782]
[1734443475996,0.04222316,4006.2,4005.0,0.782]
[1734443477013,0.04222316,4006.2,4006.0,8.0]
[1734443477205,0.23715712,4006.1,4006.0,8.0]
[1734443477569,0.27936649,4006.1,4006.0,8.0]
[1734443478795,4.4324729,4006.1,4006.0,8.0]
[1734443479010,8.72265088,4006.1,4006.0,8.0]
[1734443479191,10.2833077,4006.1,4006.0,8.0]
[1734443479590,8.72265088,4006.1,4006.0,8.0]
[1734443479803,10.2833077,4006.1,4006.0,8.0]
[1734443480516,10.4424405,4006.1,4006.0,8.0]
[1734443480809,12.52331626,4006.1,4006.0,5.22804311]
[1734443481214,13.07331626,4006.1,4006.0,5.22804311]
[1734443481521,13.07331626,4006.1,4002.2,1.80600868]
[1734443481522,0.7968,4005.0,4003.9,0.7973]
[1734443481815,0.329365,4004.9,4003.9,0.7973]
[1734443481966,0.37094508,4004.9,4003.9,0.7973]
[1734443482668,2.32934808,4004.7,4003.9,0.7973]
[1734443482866,2.32934808,4004.7,4002.4,2.32934808]
[1734443482867,0.0415387,4004.6,4003.1,0.7973]
[1734443483106,2.32934808,4003.9,4003.1,0.7973]
[1734443483267,2.32934808,4003.9,4001.6,1.03733912]
[1734443483268,0.27404384,4003.8,4002.7,0.7973]
[1734443487506,0.21999285,4003.8,4002.7,0.7973]
[1734443487890,3.21999285,4003.8,4002.7,0.7973]
[1734443488409,0.21999285,4003.8,4002.7,0.7973]
[1734443488707,0.04110903,4003.8,4002.7,0.7973]
[1734443488870,3.7968,4004.2,4002.7,0.7973]
[1734443489071,0.03960357,4004.1,4002.7,0.7973]
[1734443492109,0.03960357,4004.1,4002.8,0.7594]
[1734443492318,0.786,4004.5,4002.8,0.7594]
[1734443492674,0.786,4004.5,4002.9,0.33837564]
[1734443492884,0.03993449,4004.4,4002.9,0.33837564]
[1734443493511,0.03993449,4004.4,4002.8,0.7594]
[1734443493719,2.32934808,4003.9,4002.8,0.7594]
[1734443494014,0.0399615,4003.8,4002.8,0.7594]
[1734443497240,0.0399615,4003.8,4001.8,2.32934808]
[1734443497241,0.0399615,4003.8,4001.9,0.7594]
[1734443498437,0.786,4003.7,4001.9,0.7594]
[1734443498632,0.786,4003.7,4002.0,0.30887481]
[1734443498828,0.03979912,4003.6,4002.0,0.30887481]
[1734443504047,0.786,4003.5,4002.0,0.30887481]
[1734443504418,0.03967667,4003.4,4002.0,0.30887481]
[1734443505913,0.03967667,4003.4,4002.0,0.60388317]
[1734443506169,0.03967667,4003.4,4002.4,2.32934808]
[1734443506507,0.786,4003.5,4002.4,2.32934808]
[1734443508548,0.786,4003.5,4002.5,3.8215]
[1734443513418,0.786,4003.5,4002.5,0.8215]
[1734443513952,0.786,4003.5,4002.6,0.02497998]